bitfinex/quotes_ETHUSD_20250517
["timestamp","ask_amount","ask_price","bid_price","bid_amount"]
[1747440324371,12.649,2521.0,2519.1,0.8752501]
[1747440324672,0.30077722,2521.7,2520.1,3.96809599]
[1747440324874,12.656,2521.3,2517.8,0.8129]
[1747440325168,0.02060236,2520.1,2517.8,0.8129]
[1747440325371,8.0,2519.9,2517.8,0.8129]
[1747440325553,3.96998689,2518.9,2517.8,0.8129]
[1747440325728,3.96998689,2518.9,2518.2,12.721]
[1747440325928,3.96984527,2519.0,2518.2,12.721]
[1747440326263,3.96998689,2518.9,2517.5,3.97213049]
[1747440326481,12.863,2519.4,2518.4,0.7799]
[1747440326627,12.863,2519.4,2518.5,3.97058874]
[1747440326822,20.869,2520.0,2518.7,12.721]
[1747440327075,0.02060236,2520.1,2518.9,17.8979]
[1747440327275,3.96742341,2520.6,2519.2,0.7799]
[1747440327443,3.96742341,2520.6,2519.0,8.0]
[1747440327444,12.905,2521.0,2520.0,0.7799]
[1747440327645,3.96729956,2520.7,2520.0,13.5059]
[1747440327966,3.96731795,2520.6,2520.0,13.5059]
[1747440328130,16.84228382,2521.3,2520.1,1.74742968]
[1747440328329,12.876,2521.3,2520.1,1.74742968]
[1747440328551,3.96380793,2522.9,2520.1,1.74742968]
[1747440328738,3.96639356,2521.2,2520.2,3.96793905]
[1747440328950,12.858,2521.9,2520.7,3.96704308]
[1747440329153,3.96574232,2521.6,2520.8,17.16759113]
[1747440329360,0.29110641,2522.9,2522.0,0.7799]
[1747440329948,3.96474649,2522.3,2522.0,0.7799]
[1747440330150,3.96448379,2522.4,2522.0,0.7799]
[1747440330324,3.96448379,2522.4,2522.0,2.13049]
[1747440330554,3.96494984,2522.1,2522.0,0.7799]
[1747440331069,12.9,2523.1,2522.0,0.7799]
[1747440331274,3.96396164,2522.8,2522.0,0.7799]
[1747440331480,16.81477512,2523.5,2522.0,0.7799]
[1747440331680,3.96366492,2523.0,2522.2,3.96467634]
[1747440331831,12.852,2523.5,2522.1,7.04037183]
[1747440332031,12.846,2524.0,2522.3,0.7629]
[1747440332277,12.846,2524.0,2522.8,0.7629]
[1747440332599,12.834,2524.5,2522.9,17.123]
[1747440332756,3.96239092,2523.8,2523.0,7.03661547]
[1747440333080,12.725,2524.8,2523.0,7.03661547]
[1747440333081,3.96175659,2524.2,2523.3,3.96303716]
[1747440333283,12.821,2524.7,2523.0,7.03662117]
[1747440333470,12.821,2524.7,2523.3,12.725]
[1747440333782,4.25402755,2524.9,2523.7,3.96229622]
[1747440333783,3.96062796,2524.9,2523.7,3.96229622]
[1747440333964,3.96120075,2524.5,2523.7,0.47251962]
[1747440334162,3.96131674,2524.5,2523.7,0.47251962]
[1747440334496,3.96008236,2525.2,2524.0,4.51193182]
[1747440334770,3.96086663,2524.7,2524.1,29.841]
[1747440334935,12.816,2525.6,2524.2,0.55]
[1747440335262,8.0,2525.2,2523.9,0.7629]
[1747440335470,8.0,2525.0,2523.9,0.7629]
[1747440335631,8.0,2524.7,2523.9,0.7629]
[1747440335834,3.96151098,2524.3,2523.9,0.7629]
[1747440336032,16.7836151,2524.9,2524.0,0.55]
[1747440336266,3.96132913,2524.5,2524.0,0.55]
[1747440336479,3.96070975,2524.8,2524.0,4.51195794]
[1747440336766,3.96087791,2524.7,2524.2,0.55]
[1747440336967,3.95983627,2525.4,2524.2,0.55]
[1747440337367,3.96059952,2524.9,2524.2,4.51154016]
[1747440337574,3.96035416,2525.1,2524.4,0.45]
[1747440337735,3.96043861,2525.0,2524.5,12.719]
[1747440338056,3.95945517,2525.6,2524.7,3.96075797]
[1747440338258,3.9597079,2525.5,2524.6,0.8117]
[1747440338567,3.95960519,2525.6,2524.8,3.9607026]
[1747440338868,3.95867146,2526.1,2524.8,3.9607026]
[1747440338869,3.95961768,2525.5,2524.8,3.9607026]
[1747440339079,3.95882818,2526.0,2524.6,0.8117]
[1747440339258,3.95952751,2525.6,2524.9,12.719]
[1747440339583,3.95952751,2525.6,2524.7,0.55]
[1747440339740,3.95952751,2525.6,2524.9,12.715]
[1747440339937,3.96086663,2524.7,2524.6,0.8117]
[1747440340185,3.96050382,2525.0,2524.6,13.5267]
[1747440340474,3.96055679,2524.9,2524.6,13.5267]
[1747440340862,3.96075319,2524.8,2524.6,13.5267]
[1747440341063,3.96061605,2524.9,2524.6,13.5267]
[1747440341371,12.669,2525.6,2524.3,17.115]
[1747440341672,3.96133734,2524.4,2524.3,17.115]
[1747440341839,3.9610899,2524.6,2524.3,17.115]
[1747440342043,3.96128493,2524.5,2524.3,17.115]
[1747440342341,3.96121722,2524.5,2524.3,29.83]
[1747440342542,3.96093272,2524.7,2524.3,29.83]
[1747440342744,3.96052968,2525.0,2524.5,0.8117]
[1747440342939,3.9608362,2524.8,2524.6,12.713]
[1747440343170,3.96060967,2524.9,2524.6,12.713]
[1747440343482,3.96075172,2524.8,2524.6,12.713]
[1747440343775,3.96102352,2524.6,2524.5,0.8117]
[1747440344071,2.37,2525.2,2524.5,0.8117]
[1747440344270,3.96049332,2525.0,2524.5,0.8117]
[1747440344472,3.96049985,2525.0,2524.5,0.8117]
[1747440344671,3.96049985,2525.0,2524.6,0.55]
[1747440344969,3.95995691,2525.3,2524.6,4.51101979]
[1747440345171,3.95977782,2525.4,2524.8,0.55]
[1747440345378,3.95990393,2525.4,2525.0,0.55]
[1747440345981,3.95967491,2525.5,2525.0,0.55]
[1747440346573,2.37,2526.1,2525.0,4.51030781]
[1747440346752,3.95948673,2525.6,2525.2,0.55]
[1747440347082,3.95958771,2525.6,2525.2,0.55]
[1747440347753,3.95962051,2525.5,2525.2,0.55]
[1747440348153,3.95952368,2525.6,2525.2,0.55]
[1747440348354,3.95914566,2525.8,2525.2,0.55]
[1747440348553,3.95930988,2525.7,2525.2,0.55]
[1747440348942,3.95946137,2525.6,2525.2,0.55]
[1747440349266,3.95933047,2525.7,2525.2,0.55]
[1747440349843,3.95919103,2525.8,2525.2,0.55]
[1747440350043,3.95930979,2525.7,2525.2,0.55]
[1747440350443,3.95901652,2525.9,2525.2,0.55]
[1747440350444,3.95920208,2525.8,2525.2,4.51008175]
[1747440350641,3.95931143,2525.7,2525.2,0.55]
[1747440351266,3.95931143,2525.7,2525.4,0.55]
[1747440351548,3.95927683,2525.8,2525.4,0.55]
[1747440351859,3.95943885,2525.7,2525.4,0.55]
[1747440352056,10.37,2526.1,2525.1,0.8199]
[1747440352258,3.96008236,2525.2,2525.1,0.8199]
[1747440352459,3.95998366,2525.3,2525.1,0.8199]
[1747440352859,3.95938016,2525.7,2525.1,4.7801065]
[1747440353174,3.95931521,2525.7,2525.3,0.55]
[1747440353466,3.95931521,2525.7,2525.4,12.372]
[1747440354280,3.95918411,2525.8,2525.4,12.372]
[1747440354483,3.9586472,2526.2,2525.5,0.55]
[1747440354883,3.95820139,2526.4,2525.5,0.55]
[1747440355087,3.95921235,2525.8,2525.5,0.55]
[1747440355385,3.95889325,2526.0,2525.5,0.55]
[1747440355588,3.95874426,2526.1,2525.6,0.7712]
[1747440355890,3.95858616,2526.2,2525.7,0.55]
[1747440356048,3.95870728,2526.1,2525.7,0.55]
[1747440356554,2.37,2527.1,2525.7,4.50926953]
[1747440356756,2.37,2526.9,2525.9,4.508923]
[1747440357055,3.95802808,2526.6,2526.1,0.55]
[1747440357357,12.104,2527.0,2525.7,0.52807364]
[1747440357358,3.95835807,2526.3,2526.2,0.7712]
[1747440357561,3.95783116,2526.7,2526.2,0.7712]
[1747440357887,3.95803716,2526.6,2526.2,0.7712]
[1747440358274,3.95818556,2526.5,2526.2,0.7712]
[1747440358479,3.9570391,2527.2,2526.3,0.55]
[1747440358480,3.95765424,2526.8,2526.3,0.55]
[1747440358792,3.95776425,2526.7,2526.3,0.55]
[1747440358986,3.95771688,2526.8,2526.3,0.55]
[1747440359156,3.95779923,2526.7,2526.3,0.55]
[1747440359351,3.95835807,2526.3,2526.2,0.7712]
[1747440359569,3.95822307,2526.4,2526.2,0.7712]
[1747440359768,3.95797746,2526.6,2526.2,0.7712]
[1747440359964,3.95803844,2526.6,2526.2,0.7712]
[1747440360265,3.95820555,2526.4,2526.2,0.7712]
[1747440360446,3.95800239,2526.6,2526.3,0.55]
[1747440360651,3.95797432,2526.6,2526.3,0.55]
[1747440360855,4.31811768,2526.8,2525.8,0.7712]
[1747440360856,0.36050998,2526.8,2525.8,0.7712]
[1747440361092,4.3182414,2526.7,2526.1,0.55]
[1747440361287,4.31827793,2526.7,2526.1,0.55]
[1747440361588,3.95808585,2526.5,2526.0,0.55]
[1747440361791,3.95808585,2526.5,2526.1,12.047]
[1747440362003,4.31828612,2526.7,2526.1,16.00566756]
[1747440362157,3.95777614,2526.7,2526.1,16.00566756]
[1747440362488,3.95691212,2527.3,2526.4,0.55]
[1747440362704,3.95695113,2527.2,2526.6,3.95780256]
[1747440362993,3.95664864,2527.4,2526.7,0.55]
[1747440363159,11.988,2527.7,2526.8,3.95744645]
[1747440363357,3.9565693,2527.5,2526.7,0.55]
[1747440363591,0.36194129,2527.4,2527.0,4.50724893]
[1747440363798,0.36194129,2527.4,2527.3,1.3212]
[1747440364395,2.37,2529.0,2527.6,0.55]
[1747440364607,11.953,2529.3,2528.1,0.55]
[1747440364914,3.95477844,2528.6,2527.9,4.50585268]
[1747440365200,3.95465835,2528.7,2528.2,0.55]
[1747440365404,11.953,2529.3,2528.4,0.55]
[1747440365607,11.918,2529.7,2528.6,0.55]
[1747440365820,15.87110944,2529.7,2528.6,4.50474992]
[1747440366019,3.95397572,2529.1,2528.6,0.55]
[1747440366320,3.95410158,2529.1,2528.8,0.55]
[1747440366519,3.95404665,2529.1,2528.9,12.045]
[1747440366721,3.95347945,2529.5,2528.9,12.045]
[1747440366937,3.95280892,2529.9,2528.9,12.045]
[1747440367223,10.37,2530.0,2528.7,0.7692]
[1747440367424,3.95422993,2529.0,2528.7,0.7692]
[1747440367598,3.95401845,2529.1,2528.7,0.7692]
[1747440368220,11.885,2529.9,2528.8,0.55]
[1747440368418,11.885,2529.9,2528.8,12.591]
[1747440368800,3.95390666,2529.2,2528.9,12.041]
[1747440369000,15.837828,2529.9,2528.8,12.591]
[1747440369227,3.95393528,2529.2,2528.8,12.591]
[1747440369527,3.95288165,2529.8,2528.8,12.588]
[1747440369735,3.9510075,2531.0,2529.1,0.7692]
[1747440369911,3.95252016,2530.1,2529.2,12.588]
[1747440370108,8.0,2530.7,2529.2,0.55]
[1747440370318,8.0,2530.9,2529.4,0.55]
[1747440370645,3.9525314,2530.1,2529.4,0.55]
[1747440370802,4.24429309,2530.9,2529.4,4.50347869]
[1747440370999,3.95205753,2530.4,2529.7,0.55]
[1747440371235,3.95199537,2530.4,2529.8,0.55]
[1747440371533,3.9516394,2530.6,2529.9,15.99062105]
[1747440371733,3.95137378,2530.8,2530.1,3.95240731]
[1747440371912,12.145,2531.3,2530.3,0.804]
[1747440372108,3.95048906,2531.4,2530.3,0.804]
[1747440372424,3.9508514,2531.1,2530.3,0.804]
[1747440372832,3.95243062,2530.1,2529.9,0.804]
[1747440373135,3.95224042,2530.3,2529.9,0.804]
[1747440373352,16.07869382,2530.6,2529.9,0.804]
[1747440373523,0.8318,2530.5,2529.4,0.804]
[1747440373727,8.8318,2530.5,2529.4,0.804]
[1747440374050,3.9522816,2530.2,2529.5,4.50323732]
[1747440374246,3.9522816,2530.2,2529.5,0.55]
[1747440374411,8.0,2530.5,2529.5,0.55]
[1747440374615,3.95285593,2529.9,2529.4,0.804]
[1747440375249,3.95288588,2529.8,2529.4,0.804]
[1747440375450,3.95328768,2529.6,2529.4,0.804]
[1747440375650,3.95314982,2529.7,2529.4,0.804]
[1747440375958,3.95303808,2529.7,2529.4,0.804]
[1747440376322,3.95277498,2529.9,2529.4,0.804]
[1747440376650,12.035,2530.0,2529.4,0.804]
[1747440376828,3.95346219,2529.5,2529.3,17.082]
[1747440377025,3.95350676,2529.4,2529.3,17.082]
[1747440377553,3.95340089,2529.5,2529.3,17.082]
[1747440378054,3.95350676,2529.4,2529.3,17.082]
[1747440378263,8.0,2529.9,2529.0,0.772]
[1747440378559,3.95288174,2529.8,2529.2,3.95371918]
[1747440379059,3.95279324,2529.9,2529.2,3.95371918]
[1747440379356,3.95279324,2529.9,2529.2,15.98471918]
[1747440379655,3.95296541,2529.8,2529.2,15.98471918]
[1747440379815,8.0,2530.3,2529.2,12.031]
[1747440380152,3.95246625,2530.1,2529.5,3.95333305]
[1747440380313,4.73580498,2530.5,2529.3,0.55]
[1747440380513,3.9516924,2530.6,2529.6,0.7733]
[1747440380936,15.90522199,2530.9,2529.6,0.7733]
[1747440381225,3.9515135,2530.7,2530.1,3.95234673]
[1747440381419,3.95137142,2530.8,2530.2,16.53221773]
[1747440381731,11.937,2531.1,2530.2,16.53221773]
[1747440381732,11.931,2531.1,2530.3,3.95209085]
[1747440382055,3.95104959,2531.0,2530.4,3.95190783]
[1747440382218,3.9511841,2530.9,2530.3,3.95206717]
[1747440382424,3.9511841,2530.9,2530.3,4.72536717]
[1747440382858,3.95007169,2531.6,2530.4,0.55]
[1747440383022,11.875,2531.4,2530.6,3.95148486]
[1747440383222,3.95053074,2531.4,2530.6,3.95148486]
[1747440383422,11.864,2531.4,2530.6,0.55]
[1747440383623,11.864,2531.4,2530.6,4.501603]
[1747440383934,11.841,2531.5,2530.5,0.55]
[1747440384131,3.95048453,2531.4,2530.7,3.95137961]
[1747440384339,11.831,2531.4,2530.9,3.95113733]
[1747440384738,3.95023948,2531.5,2530.9,3.95113733]
[1747440385271,3.95023948,2531.5,2530.8,3.95125075]
[1747440385430,3.95023948,2531.5,2530.7,4.50135113]
[1747440385741,3.95022506,2531.6,2530.9,3.95112766]
[1747440385946,15.73224255,2531.5,2530.9,3.95112766]
[1747440386523,3.95024255,2531.5,2530.9,3.95112766]
[1747440387077,11.749,2531.6,2530.4,17.067]
[1747440387271,3.9508119,2531.2,2530.6,0.55]
[1747440387563,3.95066872,2531.3,2530.6,4.50157949]
[1747440387768,3.95072982,2531.2,2530.6,4.50155989]
[1747440387974,3.95063052,2531.3,2530.7,3.95143407]
[1747440388172,11.749,2531.6,2530.6,0.55]
[1747440388173,3.95011108,2531.6,2530.6,0.55]
[1747440388457,3.94993293,2531.7,2531.1,3.95084983]
[1747440388636,11.693,2531.6,2531.1,3.95084983]
[1747440388837,3.95009911,2531.6,2531.1,0.55]
[1747440389034,3.95099737,2531.1,2530.5,0.7733]
[1747440389248,3.95074055,2531.2,2530.5,0.7733]
[1747440389453,3.95095579,2531.1,2530.6,0.55]
[1747440389629,3.95095579,2531.1,2530.5,0.7733]
[1747440389959,3.95099169,2531.1,2530.6,0.55]
[1747440390158,3.95110477,2531.0,2530.6,0.55]
[1747440390463,3.95175161,2530.6,2530.4,17.067]
[1747440391462,3.95178939,2530.5,2530.1,0.7733]
[1747440391664,7.13812516,2531.4,2530.1,0.7733]
[1747440391665,3.95117786,2530.9,2530.3,3.95194636]
[1747440391866,3.95069532,2531.2,2530.1,0.7733]
[1747440392165,3.95078737,2531.2,2530.8,0.55]
[1747440392461,3.95060857,2531.3,2530.8,1.3233]
[1747440392661,11.604,2531.4,2530.8,1.3233]
[1747440392832,2.37,2531.2,2530.8,1.3233]
[1747440393249,3.95169551,2530.6,2530.4,0.7733]
[1747440393765,3.95153301,2530.7,2530.4,0.7733]
[1747440394060,6.32133914,2530.8,2530.4,0.7733]
[1747440394457,2.37,2530.8,2530.4,0.7733]
[1747440394974,2.37,2530.8,2530.4,4.72515596]
[1747440395131,6.32108798,2531.0,2530.5,0.55]
[1747440395336,3.95075995,2531.2,2530.5,0.55]
[1747440395527,15.46947894,2531.4,2530.9,0.55]
[1747440395734,0.3626326,2531.3,2531.0,3.95089829]
[1747440395936,0.3626326,2531.3,2531.1,4.50071655]
[1747440396137,0.3626326,2531.3,2531.2,4.50069532]
[1747440396870,0.3626326,2531.3,2531.2,13.31759532]
[1747440397077,0.06799361,2531.3,2531.2,15.04443864]
[1747440397259,15.43132643,2532.1,2531.5,3.95015132]
[1747440397590,6.31944707,2532.0,2531.4,11.694]
[1747440397751,3.94958992,2532.0,2531.5,0.55]
[1747440398069,3.94981017,2531.8,2531.5,0.55]
[1747440398881,3.94746687,2533.3,2531.5,0.55]
[1747440399089,3.94931391,2532.1,2531.6,0.55]
[1747440399269,3.94921731,2532.2,2531.6,4.50005611]
[1747440399488,3.94913513,2532.2,2531.6,4.50005611]
[1747440399762,3.94920148,2532.2,2531.7,0.55]
[1747440399939,3.94920148,2532.2,2531.8,0.8169]
[1747440400290,11.377,2532.4,2531.9,0.55]
[1747440400437,3.94913593,2532.2,2531.9,0.55]
[1747440400642,3.94870277,2532.5,2531.9,0.55]
[1747440400869,3.949044,2532.3,2531.9,0.55]
[1747440401454,3.94960306,2531.9,2531.8,0.8169]
[1747440401657,3.94953207,2532.0,2531.5,0.55]
[1747440402077,11.336,2532.3,2531.5,0.55]
[1747440402078,3.94960428,2531.9,2531.5,0.55]
[1747440403044,2.37,2532.5,2531.5,0.55]
[1747440403244,3.94916348,2532.2,2531.7,0.55]
[1747440403450,3.94910279,2532.3,2531.7,4.49980181]
[1747440404195,3.94887411,2532.4,2531.6,0.55]
[1747440404375,3.94951544,2532.0,2531.6,0.55]
[1747440404582,3.94934917,2532.1,2531.6,0.55]
[1747440405104,11.1808,2532.7,2531.6,4.50002347]
[1747440405393,3.94915586,2532.2,2531.7,3.94983471]
[1747440405811,3.94887145,2532.4,2531.7,3.94983471]
[1747440406020,3.94915025,2532.2,2531.6,6.16402545]
[1747440406684,3.94905489,2532.3,2531.8,0.55]
[1747440406892,3.94869416,2532.5,2532.0,4.49938525]
[1747440407179,3.94885201,2532.4,2532.0,0.55]
[1747440407402,3.94868013,2532.5,2532.0,0.55]
[1747440407713,3.94849786,2532.7,2532.1,3.94919183]
[1747440407915,11.9483555,2532.7,2531.9,0.8082]
[1747440408071,3.94922766,2532.2,2531.9,0.8082]
[1747440408265,3.94897321,2532.4,2532.0,0.55]
[1747440408471,21.00878919,2533.1,2532.0,0.55]
[1747440408691,3.94875057,2532.5,2532.0,0.55]
[1747440408894,3.94875057,2532.5,2532.0,1.47573999]
[1747440409199,3.94858448,2532.6,2532.0,5.42518613]
[1747440409402,3.94855233,2532.6,2532.0,5.42512998]
[1747440409775,3.94870148,2532.5,2532.0,1.47573999]
[1747440410006,3.94889524,2532.4,2532.0,0.55]
[1747440410988,3.94897992,2532.3,2532.0,0.55]
[1747440411174,17.42138649,2532.7,2532.0,0.55]
[1747440411380,3.94928536,2532.2,2532.0,0.55]
[1747440412201,11.059,2532.6,2532.0,0.55]
[1747440412406,3.94891705,2532.4,2532.0,0.55]
[1747440412584,3.94923913,2532.2,2532.0,0.55]
[1747440412783,11.059,2532.6,2532.0,0.55]
[1747440412984,3.94923303,2532.2,2532.0,0.55]
[1747440413391,15.00753432,2532.6,2532.0,0.55]
[1747440413599,3.94923083,2532.2,2532.0,0.55]
[1747440414176,3.94875619,2532.5,2532.0,0.55]
[1747440414773,3.94851141,2532.6,2532.0,0.55]
[1747440414975,3.94880101,2532.5,2532.0,0.55]
[1747440415271,11.94802018,2533.0,2532.2,0.55]
[1747440415272,3.94859889,2532.6,2532.2,0.55]
[1747440415473,3.9486812,2532.5,2532.2,0.55]
[1747440415787,10.37,2532.8,2532.0,0.55]
[1747440415992,3.9492911,2532.1,2532.0,0.55]
[1747440416319,3.94920292,2532.2,2532.0,0.55]
[1747440416620,3.94907172,2532.3,2532.0,0.55]
[1747440416621,3.9490839,2532.3,2532.0,0.55]
[1747440417375,3.9492911,2532.1,2532.0,0.55]
[1747440417576,3.94917581,2532.2,2532.0,0.55]
[1747440418022,3.9492911,2532.1,2532.0,0.55]
[1747440418938,3.94944707,2532.0,2531.9,0.8082]
[1747440419206,3.94944707,2532.0,2531.9,1.3582]
[1747440419597,3.94991507,2531.7,2531.5,0.767]
[1747440419776,3.9500711,2531.6,2531.2,11.064]
[1747440419975,14.81447726,2532.7,2531.4,3.95038318]
[1747440420194,3.94931946,2532.1,2531.6,0.55]
[1747440420386,3.9497131,2531.9,2531.6,0.55]
[1747440420590,3.94899897,2532.3,2531.4,0.55]
[1747440420591,3.94976554,2531.8,2531.4,0.55]
[1747440420796,3.94976554,2531.8,2531.6,0.55]
[1747440421120,3.94851141,2532.6,2531.3,11.831]
[1747440421121,3.94944707,2532.0,2531.3,11.831]
[1747440421321,3.95038318,2531.4,2531.3,0.767]
[1747440421686,3.95038318,2531.4,2531.3,1.317]
[1747440422090,3.94960306,2531.9,2531.4,0.55]
[1747440422327,0.8036,2532.2,2531.4,0.55]
[1747440422526,0.8036,2532.2,2531.2,8.0]
[1747440422527,3.9489374,2532.4,2531.8,0.55]
[1747440422728,0.8164,2532.7,2531.9,0.7648]
[1747440422895,3.94859611,2532.6,2532.1,0.55]
[1747440423095,3.94859611,2532.6,2532.0,4.49935676]
[1747440423292,3.94842002,2532.7,2532.1,3.94926279]
[1747440423898,3.9482408,2532.8,2532.3,0.55]
[1747440424623,3.94838088,2532.7,2532.3,0.55]
[1747440425126,13.18,2533.1,2532.3,0.55]
[1747440425327,3.94908161,2532.3,2532.1,0.55]
[1747440425512,3.94888207,2532.4,2532.1,0.55]
[1747440425830,3.94902412,2532.3,2532.1,0.55]
[1747440426033,3.94827522,2532.8,2531.9,0.7648]
[1747440426034,3.94913513,2532.2,2531.9,0.7648]
[1747440426223,3.94944707,2532.0,2531.9,1.3148]
[1747440426427,3.94960306,2531.9,2531.8,28.115]
[1747440426607,3.94984974,2531.8,2531.5,0.8024]
[1747440426937,3.94851141,2532.6,2531.5,13.93925447]
[1747440427137,3.94851141,2532.6,2531.6,0.55]
[1747440427304,3.94978854,2531.8,2531.5,8.8024]
[1747440427837,3.94952925,2532.0,2531.5,8.8024]
[1747440427838,3.94954893,2532.0,2531.5,8.8024]
[1747440428016,3.94921207,2532.2,2531.7,0.55]
[1747440428725,3.94921207,2532.2,2531.7,4.49990904]
[1747440428925,3.94905181,2532.3,2531.7,4.49990904]
[1747440429329,3.94887944,2532.4,2531.9,0.55]
[1747440430025,3.94843739,2532.7,2532.2,0.55]
[1747440431422,3.94843739,2532.7,2532.3,0.55]
[1747440431625,3.94826168,2532.8,2532.3,0.55]
[1747440432146,8.8212,2533.4,2532.3,0.55]
[1747440432326,3.94825409,2532.8,2532.2,4.49904146]
[1747440432530,3.94825409,2532.8,2532.2,7.29901472]
[1747440432717,13.028,2533.1,2532.2,0.55]
[1747440432718,3.94838645,2532.7,2532.2,0.55]
[1747440432924,10.658,2533.1,2532.2,11.299]
[1747440432925,3.94876591,2532.5,2532.2,11.299]
[1747440433512,3.9482344,2532.8,2532.0,0.8024]
[1747440433845,3.94765567,2533.2,2532.2,3.9491288]
[1747440434033,3.94835577,2532.7,2532.3,0.55]
[1747440435024,3.94788787,2533.0,2532.3,0.55]
[1747440435223,3.948137,2532.9,2532.4,0.8268]
[1747440435443,3.948137,2532.9,2532.4,4.77558325]
[1747440435612,10.588,2533.3,2532.5,4.49866113]
[1747440435833,10.588,2533.3,2532.5,0.55]
[1747440436343,3.94795636,2533.0,2532.5,0.55]
[1747440436647,3.94808856,2532.9,2532.5,0.55]
[1747440437680,3.94777805,2533.1,2532.5,5.83113689]
[1747440437843,3.94764082,2533.2,2532.5,5.28113689]
[1747440438051,3.94764082,2533.2,2532.6,4.498396]
[1747440438248,3.94764082,2533.2,2532.7,10.748]
[1747440438455,3.94764082,2533.2,2532.8,0.55]
[1747440438682,12.76807342,2533.7,2532.8,0.55]
[1747440438987,3.94752439,2533.3,2533.0,0.55]
[1747440439337,3.94757698,2533.2,2533.0,0.55]
[1747440439535,3.94773202,2533.1,2533.0,0.55]
[1747440439760,3.94763041,2533.2,2533.0,0.55]
[1747440440880,3.94773202,2533.1,2533.0,0.55]
[1747440442394,10.418,2533.6,2533.0,0.55]
[1747440442538,3.94773202,2533.1,2533.0,0.55]
[1747440444887,3.94815372,2532.9,2532.8,0.55]
[1747440445190,3.94770525,2533.2,2532.8,0.55]
[1747440445492,2.37,2533.8,2533.0,0.55]
[1747440445691,8.0,2533.9,2533.0,0.55]
[1747440445692,3.94773202,2533.1,2533.0,0.55]
[1747440446842,3.94759404,2533.2,2532.7,10.425]
[1747440447175,3.94819962,2532.8,2532.7,10.425]
[1747440447392,3.94819962,2532.8,2532.7,10.975]
[1747440447888,3.94819962,2532.8,2532.7,10.425]
[1747440448092,3.94887745,2532.4,2532.3,0.8002]
[1747440448250,6.31804374,2532.9,2532.3,0.8002]
[1747440448453,3.94870482,2532.5,2532.3,0.8002]
[1747440448889,3.94870482,2532.5,2532.4,0.55]
[1747440449181,3.94856229,2532.6,2532.4,0.55]
[1747440449342,14.20605582,2532.9,2532.4,0.55]
[1747440449549,3.94812498,2532.9,2532.4,1.07993209]
[1747440449872,3.94812498,2532.9,2532.4,5.02871166]
[1747440450043,3.94775255,2533.1,2532.6,0.55]
[1747440450247,3.94775255,2533.1,2532.7,10.425]
[1747440450448,3.94763695,2533.2,2533.0,0.55]
[1747440450649,0.7858,2533.7,2533.0,0.55]
[1747440450845,3.94719792,2533.5,2533.0,4.49787512]
[1747440451086,3.94715504,2533.5,2533.0,0.55]
[1747440451271,3.94682992,2533.7,2533.0,4.49784773]
[1747440451463,3.94692054,2533.7,2533.2,0.55]
[1747440451786,3.94641421,2534.0,2533.6,0.55]
[1747440452168,1.95479913,2534.2,2533.6,4.49692105]
[1747440452370,1.95479913,2534.2,2533.8,0.55]
[1747440452570,1.95479913,2534.2,2534.0,0.55]
[1747440452770,1.95479913,2534.2,2532.7,0.33384622]
[1747440452970,1.95479913,2534.2,2531.7,0.29185919]
[1747440452971,8.8236,2533.8,2532.6,0.7779]
[1747440453220,8.8236,2533.8,2531.7,10.71785919]
[1747440453221,3.94788787,2533.0,2531.8,0.7779]
[1747440453501,23.43220965,2532.9,2531.8,0.7779]
[1747440453669,10.388,2532.8,2531.8,4.7275999]
[1747440453868,3.94863851,2532.6,2531.8,8.7779]
[1747440454092,3.94867208,2532.5,2531.8,8.7779]
[1747440454404,3.95051323,2531.4,2530.0,0.20600173]
[1747440454703,3.9527254,2529.9,2529.6,0.7779]
[1747440454919,3.9530379,2529.7,2529.6,6.73915292]
[1747440455404,24.7470379,2529.7,2529.6,6.73915292]
[1747440455603,30.9530379,2529.7,2529.6,6.73915292]
[1747440455812,31.5030379,2529.7,2529.6,5.90585292]
[1747440455990,31.5030379,2529.7,2528.7,0.20620757]
[1747440455991,3.95522683,2528.3,2528.2,4.06228392]
[1747440456307,8.0,2527.2,2526.8,0.005]
[1747440456465,6.32804472,2526.5,2526.4,0.20642931]
[1747440456670,10.37,2526.4,2524.6,2.83271222]
[1747440457029,2.37,2526.0,2525.1,2.05]
[1747440457169,6.32891695,2526.0,2525.1,2.05]
[1747440457367,0.29025707,2526.4,2525.1,2.05]
[1747440457368,10.749,2525.9,2525.1,2.05]
[1747440457611,11.96008236,2525.2,2525.1,1.6526469]
[1747440457913,11.96180816,2524.1,2523.4,9.11767749]
[1747440458084,22.88780816,2524.1,2524.0,0.205]
[1747440458419,35.02974557,2524.1,2524.0,0.205]
[1747440458603,33.61680816,2524.1,2524.0,0.205]
[1747440458807,11.96180816,2524.1,2524.0,0.205]
[1747440459111,11.96180816,2524.1,2523.4,2.37834874]
[1747440459112,3.96275014,2523.5,2523.4,2.37834874]
[1747440459407,3.96477026,2522.3,2522.1,9.83371248]
[1747440459741,8.0,2522.7,2522.1,9.83371248]
[1747440460029,11.078,2522.7,2522.1,10.81708373]
[1747440460337,8.0,2523.7,2522.2,3.96479264]
[1747440460483,11.106,2524.6,2522.3,11.8709]
[1747440460684,11.106,2524.6,2522.6,8.0]
[1747440461019,11.11953157,2525.0,2522.9,0.7649]
[1747440461196,17.071,2525.7,2523.3,8.0]
[1747440461396,17.071,2525.7,2523.4,8.7649]
[1747440461582,17.071,2525.7,2523.6,11.96259312]
[1747440461783,1.95479913,2525.9,2523.8,8.0]
[1747440461983,1.95479913,2525.9,2523.8,12.7271791]
[1747440462281,11.162,2526.4,2525.7,3.95927781]
[1747440462518,11.162,2526.4,2525.2,3.96004566]
[1747440462823,2.54123887,2526.6,2525.2,8.0]